[Event "69th RUS-ch Women Superfinal 2019"]
[Site "Izhevsk"]
[Date "2019.08.14"]
[Round "4.2"]
[White "Bodnaruk, Anastasia"]
[Black "Gunina, Valentina"]
[Result "1/2-1/2"]
[ECO "C67"]
[WhiteElo "2440"]
[BlackElo "2497"]
[Annotator "ChessBase"]
[PlyCount "136"]
[EventDate "2019.08.10"]
[EventType "tourn"]
[EventCountry "RUS"]
[SourceTitle "playchess.com"]
[Source "ChessBase"]
[SourceQuality "1"]
[TimeControl "40/5400+30:1800+30"]

1. e4 {[%emt 0:00:00]} e5 {[%emt 0:00:00]} 2. Nf3 {[%emt 0:00:00]} Nc6 {[%emt 0:00:00]} 3. Bb5 {[%emt 0:00:00]} Nf6 {[%emt 0:00:03]} 4. O-O {[%emt 0:00:22]} Nxe4 {[%emt 0:01:24]} 5. d4 {[%emt 0:00:19]} Nd6 {[%emt 0:01:25]} 6. dxe5 {[%emt 0:00:34]} Nxb5 {[%emt 0:01:11]} 7. a4 {[%emt 0:00:07]} Nbd4 {[%emt 0:12:12]} 8. Nxd4 {[%emt 0:00:45]} d6 {[%emt 0:07:14]} 9. Nxc6 {[%emt 0:15:20]} bxc6 {[%emt 0:00:37]} 10. Qd4 {[%emt 0:06:52]} Be6 {[%emt 0:05:08]} 11. Be3 {[%emt 0:11:28]} c5 {[%emt 0:11:17]} 12. Qc3 {[%emt 0:01:27]} Qd7 {[%emt 0:00:36]} 13. Rd1 {[%emt 0:06:31]} Qc6 {[%emt 0:05:20]} 14. b4 {[%emt 0:01:50]} Be7 {[%emt 0:10:24]} 15. b5 {[%emt 0:32:17]} Qb7 {[%emt 0:02:54]} 16. Nd2 {[%emt 0:05:21]} O-O {[%emt 0:00:33]} 17. Nb3 {[%emt 0:04:41]} Qe4 {[%emt 0:02:51]} 18. Re1 {[%emt 0:03:27]} Qg6 {[%emt 0:00:56]} 19. Bf4 {[%emt 0:01:20]} a6 {[%emt 0:02:54]} 20. b6 {[%emt 0:04:51]} cxb6 {[%emt 0:03:15]} 21. exd6 {[%emt 0:00:31]} Bf6 {[%emt 0:00:31]} 22. Be5 {[%emt 0:01:58]} Bxe5 {[%emt 0:00:11]} 23. Rxe5 {[%emt 0:00:41]} a5 {[%emt 0:01:44]} 24. Rd1 {[%emt 0:00:44]} Qg4 {[%emt 0:03:24]} 25. Qa1 {[%emt 0:00:19]} Rad8 {[%emt 0:01:25]} 26. Re3 {[%emt 0:00:25]} Qf4 {[%emt 0:01:33]} 27. Red3 {[%emt 0:00:45]} Rd7 {[%emt 0:02:17]} 28. Nc1 {[%emt 0:00:30]} Bc4 {[%emt 0:04:06]} 29. R3d2 {[%emt 0:00:31]} Re8 {[%emt 0:00:05]} 30. Nd3 {[%emt 0:00:31]} Bxd3 {[%emt 0:06:00]} 31. Rxd3 {[%emt 0:00:01]} Re2 {[%emt 0:00:10]} 32. Rf3 {[%emt 0:00:45]} Qe4 {[%emt 0:00:01]} 33. Rfd3 {[%emt 0:00:32]} Qf5 {[%emt 0:01:52]} 34. Rf3 {[%emt 0:00:42]} Qxc2 {[%emt 0:00:25]} 35. h3 {[%emt 0:00:28]} h6 {[%emt 0:00:39]} 36. Rd5 {[%emt 0:00:31]} Qe4 {[%emt 0:01:35]} 37. Rd1 {[%emt 0:00:31]} Qe6 {[%emt 0:00:48]} 38. Rfd3 {[%emt 0:00:25]} c4 {[%emt 0:01:18]} 39. Rd5 {[%emt 0:00:36]} Qe4 {[%emt 0:04:16]} 40. Qb1 {[%emt 0:00:00]} Qxb1 {[%emt 0:00:00]} 41. Rxb1 {[%emt 0:00:25]} c3 {[%emt 0:04:11]} 42. Rbd1 {[%emt 0:09:43]} f6 {[%emt 0:03:42]} 43. R5d3 {[%emt 0:03:30]} Rc2 {[%emt 0:03:33]} 44. Kh2 {[%emt 0:04:49]} Kf7 {[%emt 0:01:08]} 45. f4 {[%emt 0:01:49]} f5 {[%emt 0:01:31]} 46. Re1 {[%emt 0:05:22]} Kf6 {[%emt 0:00:54]} 47. Kg3 {[%emt 0:02:09]} Ra2 {[%emt 0:02:15]} 48. Rc1 {[%emt 0:02:19]} Rd2 {[%emt 0:02:03]} 49. Rcxc3 {[%emt 0:02:36]} Rxd3+ {[%emt 0:00:19]} 50. Rxd3 {[%emt 0:00:00]} Ke6 {[%emt 0:00:06]} 51. Kf3 {[%emt 0:02:02]} Rxd6 {[%emt 0:00:07]} 52. Rb3 {[%emt 0:00:03]} Kd7 {[%emt 0:01:06]} 53. g4 {[%emt 0:00:56]} fxg4+ {[%emt 0:07:07]} 54. hxg4 {[%emt 0:00:01]} Kc7 {[%emt 0:00:06]} 55. Ke4 {[%emt 0:00:25]} Rd1 {[%emt 0:01:00]} 56. Rc3+ {[%emt 0:02:21]} Kd6 {[%emt 0:00:49]} 57. Rb3 {[%emt 0:00:23]} Kc6 {[%emt 0:01:20]} 58. Rc3+ {[%emt 0:00:07]} Kb7 {[%emt 0:00:12]} 59. Ke5 {[%emt 0:00:58]} Ra1 {[%emt 0:05:12]} 60. Rc4 {[%emt 0:00:30]} Rb1 {[%emt 0:02:21]} 61. Rd4 {[%emt 0:00:01]} Kc7 {[%emt 0:00:22]} 62. Rc4+ {[%emt 0:00:31]} Kd7 {[%emt 0:00:04]} 63. Rd4+ {[%emt 0:00:16]} Ke8 {[%emt 0:01:25]} 64. Rc4 {[%emt 0:00:17]} Kd7 {[%emt 0:05:54]} 65. Rd4+ {[%emt 0:00:02]} Kc7 {[%emt 0:00:27]} 66. Rc4+ {[%emt 0:00:03]} Kb7 {[%emt 0:00:01]} 67. Rd4 {[%emt 0:00:11]} Kc7 {[%emt 0:02:55]} 68. Rc4+ {[%emt 0:00:27]} Kd7 {[%emt 0:00:03]} 1/2-1/2

[Event "69th RUS-ch Women Superfinal 2019"]
[Site "Izhevsk"]
[Date "2019.08.14"]
[Round "4.3"]
[White "Potapova, Margarita"]
[Black "Pogonina, Natalija"]
[Result "1/2-1/2"]
[ECO "D37"]
[WhiteElo "2292"]
[BlackElo "2457"]
[Annotator "ChessBase"]
[PlyCount "74"]
[EventDate "2019.08.10"]
[EventType "tourn"]
[EventCountry "RUS"]
[SourceTitle "playchess.com"]
[Source "ChessBase"]
[SourceQuality "1"]
[TimeControl "40/5400+30:1800+30"]

1. d4 {[%emt 0:00:00]} Nf6 {[%emt 0:00:00]} 2. c4 {[%emt 0:00:00]} e6 {[%emt 0:00:00]} 3. Nf3 {[%emt 0:00:00]} d5 {[%emt 0:00:10]} 4. Nc3 {[%emt 0:00:00]} Nbd7 {[%emt 0:00:35]} 5. Bf4 {[%emt 0:00:06]} dxc4 {[%emt 0:00:21]} 6. e3 {[%emt 0:00:07]} b5 {[%emt 0:00:28]} 7. Nxb5 {[%emt 0:00:13]} Bb4+ {[%emt 0:00:07]} 8. Nc3 {[%emt 0:00:05]} Nd5 {[%emt 0:05:18]} 9. a3 {[%emt 0:00:07]} Nxc3 {[%emt 0:00:52]} 10. Qd2 {[%emt 0:00:07]} Nd5 {[%emt 0:00:08]} 11. axb4 {[%emt 0:00:05]} Nxf4 {[%emt 0:00:08]} 12. exf4 {[%emt 0:00:03]} Bb7 {[%emt 0:00:14]} 13. Be2 {[%emt 0:01:28]} Nb6 {[%emt 0:00:19]} 14. O-O {[%emt 0:00:46]} Qd6 {[%emt 0:00:08]} 15. Ne5 {[%emt 0:03:54]} f6 {[%emt 0:10:08]} 16. Bh5+ {[%emt 0:30:16]} g6 {[%emt 0:01:41]} 17. Bf3 {[%emt 0:00:15]} Bd5 {[%emt 0:30:33]} 18. Bxd5 {[%emt 0:00:54]} Nxd5 {[%emt 0:00:37]} 19. Nxc4 {[%emt 0:01:38]} Qxf4 {[%emt 0:02:19]} 20. Qe2 {[%emt 0:02:51]} Kf7 {[%emt 0:01:35]} 21. Rfe1 {[%emt 0:10:37]} Rhe8 {[%emt 0:01:07]} 22. g3 {[%emt 0:06:44]} Qh6 {[%emt 0:13:13]} 23. Ra6 {[%emt 0:04:33]} Qh3 {[%emt 0:00:49]} 24. b5 {[%emt 0:02:47]} h5 {[%emt 0:09:32]} 25. Rc6 {[%emt 0:14:00]} Re7 {[%emt 0:01:43]} 26. Rc5 {[%emt 0:00:43]} Qg4 {[%emt 0:05:41]} 27. Qxg4 {[%emt 0:02:34]} hxg4 {[%emt 0:00:04]} 28. Re4 {[%emt 0:03:07]} Nb4 {[%emt 0:02:07]} 29. Rxg4 {[%emt 0:04:12]} Nd3 {[%emt 0:02:21]} 30. Rc6 {[%emt 0:00:44]} Nb4 {[%emt 0:03:50]} 31. Rc5 {[%emt 0:01:31]} Nd3 {[%emt 0:00:05]} 32. Rc6 {[%emt 0:00:17]} Nb4 {[%emt 0:02:30]} 33. Rc5 {[%emt 0:00:05]} Nd3 {[%emt 0:00:04]} 34. Rc6 {[%emt 0:00:06]} Nb4 {[%emt 0:00:20]} 35. Rc5 {[%emt 0:00:04]} Nd3 {[%emt 0:00:12]} 36. Rc6 {[%emt 0:00:04]} Nb4 {[%emt 0:00:05]} 37. Rc5 {[%emt 0:00:03]} Nd3 {[%emt 0:00:04]} 1/2-1/2

[Event "69th RUS-ch Women Superfinal 2019"]
[Site "Izhevsk"]
[Date "2019.08.14"]
[Round "4.4"]
[White "Girya, Olga"]
[Black "Kosteniuk, Alexandra"]
[Result "1-0"]
[ECO "E32"]
[WhiteElo "2457"]
[BlackElo "2517"]
[Annotator "ChessBase"]
[PlyCount "77"]
[EventDate "2019.08.10"]
[EventType "tourn"]
[EventCountry "RUS"]
[SourceTitle "playchess.com"]
[Source "ChessBase"]
[SourceQuality "1"]
[TimeControl "40/5400+30:1800+30"]

1. d4 {[%emt 0:00:00]} Nf6 {[%emt 0:00:00]} 2. c4 {[%emt 0:00:00]} e6 {[%emt 0:00:00]} 3. Nc3 {[%emt 0:00:00]} Bb4 {[%emt 0:00:00]} 4. Qc2 {[%emt 0:00:00]} d6 {[%emt 0:00:05]} 5. a3 {[%emt 0:03:03]} Bxc3+ {[%emt 0:00:08]} 6. Qxc3 {[%emt 0:00:04]} Nbd7 {[%emt 0:00:57]} 7. f3 {[%emt 0:09:24]} e5 {[%emt 0:02:33]} 8. e4 {[%emt 0:00:15]} exd4 {[%emt 0:02:11]} 9. Qxd4 {[%emt 0:00:06]} Nc5 {[%emt 0:00:09]} 10. Qc3 {[%emt 0:02:09]} O-O {[%emt 0:02:09]} 11. Be3 {[%emt 0:01:22]} Bd7 {[%emt 0:05:58]} 12. Bxc5 {[%emt 0:23:41]} dxc5 {[%emt 0:00:25]} 13. O-O-O {[%emt 0:00:41]} Qe7 {[%emt 0:03:11]} 14. e5 {[%emt 0:07:08]} Ne8 {[%emt 0:03:50]} 15. Bd3 {[%emt 0:01:14]} Qg5+ {[%emt 0:11:40]} 16. Kb1 {[%emt 0:01:48]} f6 {[%emt 0:00:24]} 17. Qc2 {[%emt 0:03:30]} f5 {[%emt 0:06:04]} 18. Nh3 {[%emt 0:01:27]} Qh6 {[%emt 0:01:41]} 19. f4 {[%emt 0:01:04]} Qa6 {[%emt 0:04:11]} 20. g4 {[%emt 0:12:05]} g6 {[%emt 0:04:27]} 21. Ng5 {[%emt 0:07:53]} Ng7 {[%emt 0:00:50]} 22. Qg2 {[%emt 0:04:14]} fxg4 {[%emt 0:13:39]} 23. Be4 {[%emt 0:00:47]} Bc6 {[%emt 0:00:11]} 24. Bd5+ {[%emt 0:01:41]} Kh8 {[%emt 0:00:05]} 25. Qxg4 {[%emt 0:01:51]} Bxd5 {[%emt 0:00:25]} 26. cxd5 {[%emt 0:00:11]} Qc4 {[%emt 0:03:05]} 27. Rhf1 {[%emt 0:02:46]} Rf5 {[%emt 0:03:29]} 28. Qh4 {[%emt 0:05:54]} Nh5 {[%emt 0:05:10]} 29. d6 {[%emt 0:02:21]} cxd6 {[%emt 0:00:05]} 30. exd6 {[%emt 0:00:02]} Rd5 {[%emt 0:05:43]} 31. Rfe1 {[%emt 0:03:53]} Qb3 {[%emt 0:03:53]} 32. Rxd5 {[%emt 0:01:44]} Qxd5 {[%emt 0:00:02]} 33. Qg4 {[%emt 0:01:23]} Ng7 {[%emt 0:13:58]} 34. Rd1 {[%emt 0:01:02]} Qb3 {[%emt 0:00:11]} 35. d7 {[%emt 0:00:25]} Rd8 {[%emt 0:00:04]} 36. Rd2 {[%emt 0:01:16]} Nf5 {[%emt 0:05:27]} 37. Qe2 {[%emt 0:00:14]} Qg8 {[%emt 0:01:34]} 38. Qe5+ {[%emt 0:00:07]} Ng7 {[%emt 0:00:05]} 39. Qe7 {[%emt 0:00:42]} 1-0

[Event "69th RUS-ch Women Superfinal 2019"]
[Site "Izhevsk"]
[Date "2019.08.14"]
[Round "4.5"]
[White "Charochkina, Daria"]
[Black "Shuvalova, Polina"]
[Result "1-0"]
[ECO "A03"]
[WhiteElo "2338"]
[BlackElo "2418"]
[Annotator "NA"]
[PlyCount "119"]
[EventDate "2019.08.10"]
[EventType "tourn"]
[EventCountry "RUS"]
[SourceTitle "playchess.com"]
[Source "ChessBase"]
[SourceQuality "1"]
[TimeControl "40/5400+30:1800+30"]

1. f4 {[%emt 0:00:00]} d5 {[%emt 0:00:11]} 2. Nf3 {[%emt 0:00:00]} Nf6 {[%emt 0:02:17]} 3. e3 {[%emt 0:00:00]} g6 {[%emt 0:00:52]} 4. b4 {[%emt 0:00:00]} Bg7 {[%emt 0:00:33]} 5. Bb2 {[%emt 0:00:00]} a5 {[%emt 0:01:18]} 6. b5 {[%emt 0:00:09]} a4 {[%emt 0:00:11]} 7. Na3 {[%emt 0:02:00]} O-O {[%emt 0:07:10]} 8. Be2 {[%emt 0:01:19]} c5 {[%emt 0:00:24]} 9. O-O {[%emt 0:17:43]} c4 {[%emt 0:10:20]} 10. Ne5 {[%emt 0:08:29]} Qd6 {[%emt 0:08:15]} 11. Qc1 {[%emt 0:02:16]} Nfd7 {[%emt 0:03:36]} 12. d4 {[%emt 0:13:26]} cxd3 {[%emt 0:14:26]} 13. Nxd3 {[%emt 0:00:28]} Bxb2 {[%emt 0:03:49]} 14. Qxb2 {[%emt 0:00:07]} Nb6 {[%emt 0:00:06]} 15. Rad1 {[%emt 0:04:02]} N8d7 {[%emt 0:03:36]} 16. Kh1 {[%emt 0:23:09]} Nf6 {[%emt 0:01:10]} 17. c4 {[%emt 0:01:04]} dxc4 {[%emt 0:02:10]} 18. Ne5 {[%emt 0:00:16]} Qc5 {[%emt 0:00:59]} 19. Naxc4 {[%emt 0:00:06]} Be6 {[%emt 0:01:47]} 20. Nxb6 {[%emt 0:02:13]} Qxb6 {[%emt 0:01:11]} 21. Qa3 {[%emt 0:01:32]} Kg7 {[%emt 0:08:03]} 22. Qxe7 {[%emt 0:05:43]} Qxe3 {[%emt 0:04:38]} 23. Bf3 {[%emt 0:00:38]} Qxf4 {[%emt 0:03:53]} 24. Nd3 {[%emt 0:00:43]} Qh4 {[%emt 0:00:46]} 25. Nc5 {[%emt 0:06:06]} Bf5 {[%emt 0:03:30]} 26. Nxb7 {[%emt 0:02:59]} Rae8 {[%emt 0:03:18]} 27. Qa3 {[%emt 0:00:09]} Re5 {[%emt 0:02:11]} 28. Qb2 {[%emt 0:01:31]} Re6 {[%emt 0:04:01]} 29. Nc5 {[%emt 0:01:45]} Rb6 {[%emt 0:03:47]} 30. Bc6 {[%emt 0:02:24]} Kg8 {[%emt 0:02:56]} 31. Rd4 {[%emt 0:02:14]} Qh6 {[%emt 0:02:54]} 32. Nxa4 {[%emt 0:01:28]} Rbb8 {[%emt 0:00:11]} 33. Qc1 {[%emt 0:00:39]} Qg7 {[%emt 0:00:18]} 34. Qd1 {[%emt 0:01:03]} Ng4 {[%emt 0:01:00]} 35. Rxg4 {[%emt 0:01:14]} Rbd8 {[%emt 0:00:26]} 36. Qf3 {[%emt 0:00:31]} Bxg4 {[%emt 0:00:14]} 37. Qxg4 {[%emt 0:00:03]} Rd4 {[%emt 0:00:06]} 38. Qe2 {[%emt 0:00:52]} Rxa4 {[%emt 0:00:02]} 39. b6 {[%emt 0:00:17]} Rb4 {[%emt 0:01:19]} 40. b7 {[%emt 0:00:00]} Qc3 {[%emt 0:00:00]} 41. Bd5 {[%emt 0:08:50]} Qc7 {[%emt 0:08:00]} 42. Qf3 {[%emt 0:01:15]} Qe5 {[%emt 0:01:08]} 43. h3 {[%emt 0:04:24]} Kg7 {[%emt 0:01:03]} 44. Qa3 {[%emt 0:03:50]} Rb5 {[%emt 0:05:05]} 45. Bf3 {[%emt 0:00:53]} h5 {[%emt 0:02:25]} 46. Qa6 {[%emt 0:00:51]} Rd8 {[%emt 0:03:16]} 47. a4 {[%emt 0:00:42]} Rb3 {[%emt 0:06:51]} 48. Qc6 {[%emt 0:03:27]} Ra3 {[%emt 0:01:54]} 49. Qb6 {[%emt 0:06:08]} Ra1 {[%emt 0:02:15]} 50. Rb1 {[%emt 0:00:36]} Rb8 {[%emt 0:02:09]} 51. Qb4 {[%emt 0:00:59]} h4 {[%emt 0:00:48]} 52. Rxa1 {[%emt 0:01:12]} Qxa1+ {[%emt 0:00:03]} 53. Kh2 {[%emt 0:00:03]} Qe5+ {[%emt 0:00:34]} 54. Kg1 {[%emt 0:00:08]} Qe3+ {[%emt 0:01:54]} 55. Kf1 {[%emt 0:00:35]} Qd3+ {[%emt 0:00:43]} 56. Kf2 {[%emt 0:00:10]} Qc2+ {[%emt 0:00:24]} 57. Be2 {[%emt 0:01:24]} Re8 {[%emt 0:00:18]} 58. Qb5 {[%emt 0:00:21]} Qc7 {[%emt 0:01:44]} 59. Qxe8 {[%emt 0:00:31]} Qf4+ {[%emt 0:00:29]} 60. Bf3 {[%emt 0:01:05]} 1-0

[Event "69th RUS-ch Women Superfinal 2019"]
[Site "Izhevsk"]
[Date "2019.08.14"]
[Round "4.6"]
[White "Kashlinskaya, Alina"]
[Black "Tomilova, Elena"]
[Result "1-0"]
[ECO "D44"]
[WhiteElo "2492"]
[BlackElo "2281"]
[Annotator "ChessBase"]
[PlyCount "97"]
[EventDate "2019.08.10"]
[EventType "tourn"]
[EventCountry "RUS"]
[SourceTitle "playchess.com"]
[Source "ChessBase"]
[SourceQuality "1"]
[TimeControl "40/5400+30:1800+30"]

1. d4 {[%emt 0:00:00]} d5 {[%emt 0:00:00]} 2. c4 {[%emt 0:00:00]} c6 {[%emt 0:00:00]} 3. Nf3 {[%emt 0:00:00]} Nf6 {[%emt 0:00:00]} 4. Nc3 {[%emt 0:00:03]} e6 {[%emt 0:00:00]} 5. Bg5 {[%emt 0:00:15]} dxc4 {[%emt 0:00:02]} 6. a4 {[%emt 0:02:01]} b5 {[%emt 0:00:13]} 7. axb5 {[%emt 0:01:01]} cxb5 {[%emt 0:00:04]} 8. Nxb5 {[%emt 0:00:42]} Qb6 {[%emt 0:00:09]} 9. Na3 {[%emt 0:00:38]} Bxa3 {[%emt 0:00:10]} 10. Qa4+ {[%emt 0:02:05]} Nc6 {[%emt 0:00:10]} 11. Qxa3 {[%emt 0:00:12]} Ne4 {[%emt 0:00:35]} 12. e3 {[%emt 0:09:46]} f6 {[%emt 0:03:25]} 13. Bf4 {[%emt 0:02:07]} Nb4 {[%emt 0:01:03]} 14. Rc1 {[%emt 0:06:01]} Ba6 {[%emt 0:01:13]} 15. Bc7 {[%emt 0:13:03]} Qxc7 {[%emt 0:09:37]} 16. Qxb4 {[%emt 0:00:13]} Rb8 {[%emt 0:00:59]} 17. Qa4+ {[%emt 0:14:28]} Bb5 {[%emt 0:00:43]} 18. Qa3 {[%emt 0:00:18]} Qd6 {[%emt 0:19:48]} 19. Nd2 {[%emt 0:03:08]} Qxa3 {[%emt 0:04:29]} 20. bxa3 {[%emt 0:00:38]} Nxd2 {[%emt 0:00:08]} 21. Kxd2 {[%emt 0:00:08]} Rc8 {[%emt 0:00:08]} 22. Rb1 {[%emt 0:05:57]} Ba6 {[%emt 0:14:36]} 23. Kc3 {[%emt 0:00:42]} Ke7 {[%emt 0:04:21]} 24. Be2 {[%emt 0:01:47]} e5 {[%emt 0:09:06]} 25. Rb4 {[%emt 0:02:36]} Rc7 {[%emt 0:01:01]} 26. Rhb1 {[%emt 0:04:54]} exd4+ {[%emt 0:06:33]} 27. exd4 {[%emt 0:00:39]} Rd8 {[%emt 0:07:04]} 28. Ra4 {[%emt 0:06:35]} Rd6 {[%emt 0:00:31]} 29. Rbb4 {[%emt 0:02:51]} Rdc6 {[%emt 0:02:57]} 30. Ra5 {[%emt 0:02:13]} Bc8 {[%emt 0:01:43]} 31. Rxc4 {[%emt 0:01:35]} Kd6 {[%emt 0:00:46]} 32. Rxc6+ {[%emt 0:02:17]} Rxc6+ {[%emt 0:00:07]} 33. Bc4 {[%emt 0:02:13]} Rc7 {[%emt 0:03:26]} 34. Rd5+ {[%emt 0:02:34]} Ke7 {[%emt 0:00:08]} 35. Rc5 {[%emt 0:00:37]} Kd6 {[%emt 0:00:12]} 36. Rxc7 {[%emt 0:04:23]} Kxc7 {[%emt 0:00:01]} 37. Bg8 {[%emt 0:00:11]} h6 {[%emt 0:00:27]} 38. Kc4 {[%emt 0:00:08]} Kd6 {[%emt 0:00:21]} 39. Kb5 {[%emt 0:01:19]} Bb7 {[%emt 0:00:59]} 40. g3 {[%emt 0:00:00]} g5 {[%emt 0:00:00]} 41. Bb3 {[%emt 0:12:05]} Bc8 {[%emt 0:04:21]} 42. a4 {[%emt 0:00:46]} Bb7 {[%emt 0:03:35]} 43. a5 {[%emt 0:00:25]} Bc8 {[%emt 0:00:36]} 44. Bg8 {[%emt 0:01:59]} Bb7 {[%emt 0:03:51]} 45. d5 {[%emt 0:07:41]} Bc8 {[%emt 0:01:09]} 46. Be6 {[%emt 0:02:14]} Bb7 {[%emt 0:00:10]} 47. g4 {[%emt 0:00:39]} Ke5 {[%emt 0:04:21]} 48. Kc5 {[%emt 0:00:34]} Ba6 {[%emt 0:00:26]} 49. Bf5 {[%emt 0:00:26]} 1-0

[Event "69th RUS-ch Women Superfinal 2019"]
[Site "Izhevsk"]
[Date "2019.08.15"]
[Round "5.1"]
[White "Shuvalova, Polina"]
[Black "Kashlinskaya, Alina"]
[Result "1/2-1/2"]
[ECO "C43"]
[WhiteElo "2418"]
[BlackElo "2492"]
[Annotator "ChessBase"]
[PlyCount "69"]
[EventDate "2019.08.10"]
[EventType "tourn"]
[EventCountry "RUS"]
[SourceTitle "playchess.com"]
[Source "ChessBase"]
[SourceQuality "1"]
[TimeControl "40/5400+30:1800+30"]

1. e4 {[%emt 0:00:00]} e5 {[%emt 0:00:00]} 2. Nf3 {[%emt 0:00:00]} Nf6 {[%emt 0:00:00]} 3. d4 {[%emt 0:00:00]} Nxe4 {[%emt 0:00:08]} 4. Bd3 {[%emt 0:00:00]} d5 {[%emt 0:00:17]} 5. Nxe5 {[%emt 0:00:03]} Nd7 {[%emt 0:00:39]} 6. Nxd7 {[%emt 0:00:17]} Bxd7 {[%emt 0:00:11]} 7. O-O {[%emt 0:00:04]} Bd6 {[%emt 0:00:32]} 8. Nc3 {[%emt 0:00:10]} Nxc3 {[%emt 0:01:25]} 9. bxc3 {[%emt 0:00:03]} Qh4 {[%emt 0:01:10]} 10. g3 {[%emt 0:00:28]} Qh3 {[%emt 0:00:20]} 11. Re1+ {[%emt 0:00:20]} Be6 {[%emt 0:00:50]} 12. c4 {[%emt 0:00:10]} dxc4 {[%emt 0:11:40]} 13. Bxc4 {[%emt 0:00:29]} O-O {[%emt 0:01:15]} 14. Bxe6 {[%emt 0:00:15]} fxe6 {[%emt 0:00:17]} 15. Re4 {[%emt 0:01:11]} Rf7 {[%emt 0:10:25]} 16. Qg4 {[%emt 0:08:37]} Qxg4 {[%emt 0:00:45]} 17. Rxg4 {[%emt 0:00:02]} e5 {[%emt 0:08:28]} 18. Bb2 {[%emt 0:05:40]} exd4 {[%emt 0:03:24]} 19. Bxd4 {[%emt 0:00:25]} Re8 {[%emt 0:00:32]} 20. Rb1 {[%emt 0:06:25]} b6 {[%emt 0:03:22]} 21. Kf1 {[%emt 0:06:33]} Bf8 {[%emt 0:06:14]} 22. Re1 {[%emt 0:04:20]} Rxe1+ {[%emt 0:01:13]} 23. Kxe1 {[%emt 0:00:02]} Rf5 {[%emt 0:00:22]} 24. a4 {[%emt 0:01:21]} Kf7 {[%emt 0:05:32]} 25. Ke2 {[%emt 0:06:13]} h5 {[%emt 0:09:18]} 26. Re4 {[%emt 0:00:20]} Bd6 {[%emt 0:03:21]} 27. h3 {[%emt 0:05:37]} Ra5 {[%emt 0:02:26]} 28. Be3 {[%emt 0:07:01]} a6 {[%emt 0:01:19]} 29. g4 {[%emt 0:02:23]} hxg4 {[%emt 0:00:33]} 30. hxg4 {[%emt 0:00:06]} b5 {[%emt 0:01:06]} 31. axb5 {[%emt 0:00:11]} axb5 {[%emt 0:00:09]} 32. Rd4 {[%emt 0:04:57]} Ke6 {[%emt 0:02:58]} 33. Re4+ {[%emt 0:05:35]} Kf7 {[%emt 0:00:29]} 34. Rd4 {[%emt 0:01:08]} Ke6 {[%emt 0:00:42]} 35. Re4+ {[%emt 0:00:04] Ke5} 1/2-1/2

[Event "69th RUS-ch Women Superfinal 2019"]
[Site "Izhevsk"]
[Date "2019.08.15"]
[Round "5.4"]
[White "Gunina, Valentina"]
[Black "Potapova, Margarita"]
[Result "1-0"]
[ECO "A05"]
[WhiteElo "2497"]
[BlackElo "2292"]
[Annotator "ChessBase"]
[PlyCount "99"]
[EventDate "2019.08.10"]
[EventType "tourn"]
[EventCountry "RUS"]
[SourceTitle "playchess.com"]
[Source "ChessBase"]
[SourceQuality "1"]
[TimeControl "40/5400+30:1800+30"]

1. Nf3 {[%emt 0:00:00]} Nf6 {[%emt 0:00:00]} 2. c4 {[%emt 0:00:00]} e6 {[%emt 0:00:57]} 3. e3 {[%emt 0:00:46]} b6 {[%emt 0:08:05]} 4. Nc3 {[%emt 0:01:22]} Bb7 {[%emt 0:00:09]} 5. b3 {[%emt 0:00:07]} Be7 {[%emt 0:01:06]} 6. Bb2 {[%emt 0:00:37]} O-O {[%emt 0:00:21]} 7. Be2 {[%emt 0:00:37]} d5 {[%emt 0:02:02]} 8. O-O {[%emt 0:03:58]} Nbd7 {[%emt 0:01:14]} 9. Qc2 {[%emt 0:02:21]} c5 {[%emt 0:03:06]} 10. cxd5 {[%emt 0:03:57]} Nxd5 {[%emt 0:03:59]} 11. Nxd5 {[%emt 0:01:49]} Bxd5 {[%emt 0:02:21]} 12. Rfd1 {[%emt 0:00:28]} Bf6 {[%emt 0:02:56]} 13. Rac1 {[%emt 0:03:49]} Rc8 {[%emt 0:11:29]} 14. Bxf6 {[%emt 0:05:08]} Qxf6 {[%emt 0:01:07]} 15. d4 {[%emt 0:15:44]} Bb7 {[%emt 0:01:42]} 16. Qc4 {[%emt 0:16:10]} cxd4 {[%emt 0:16:11]} 17. Qxd4 {[%emt 0:00:42]} Nc5 {[%emt 0:07:58]} 18. Qxf6 {[%emt 0:04:05]} gxf6 {[%emt 0:00:13]} 19. Nd4 {[%emt 0:00:13]} Ne4 {[%emt 0:01:24]} 20. Bc4 {[%emt 0:08:38]} Rfe8 {[%emt 0:17:13]} 21. b4 {[%emt 0:00:30]} Nd6 {[%emt 0:02:20]} 22. Bb3 {[%emt 0:00:07]} Rxc1 {[%emt 0:01:20]} 23. Rxc1 {[%emt 0:00:01]} Rc8 {[%emt 0:00:23]} 24. Rd1 {[%emt 0:00:20]} Nc4 {[%emt 0:04:18]} 25. h3 {[%emt 0:01:10]} a6 {[%emt 0:01:49]} 26. Ne2 {[%emt 0:00:24]} Ne5 {[%emt 0:03:33]} 27. f4 {[%emt 0:02:19]} Nc6 {[%emt 0:00:23]} 28. Rd7 {[%emt 0:00:17]} Ba8 {[%emt 0:01:12]} 29. f5 {[%emt 0:02:58]} Ne5 {[%emt 0:01:07]} 30. Rd6 {[%emt 0:00:13]} Rb8 {[%emt 0:03:59]} 31. fxe6 {[%emt 0:00:15]} fxe6 {[%emt 0:00:25]} 32. Rxe6 {[%emt 0:00:04]} Kg7 {[%emt 0:00:49]} 33. Nf4 {[%emt 0:00:01]} Kh8 {[%emt 0:00:45]} 34. Rxf6 {[%emt 0:00:22]} Nc6 {[%emt 0:00:25]} 35. a3 {[%emt 0:00:48]} Re8 {[%emt 0:00:34]} 36. Bd5 {[%emt 0:00:36]} Rc8 {[%emt 0:00:32]} 37. Be4 {[%emt 0:00:46]} b5 {[%emt 0:00:18]} 38. Rf7 {[%emt 0:00:54]} Ne5 {[%emt 0:00:21]} 39. Rxh7+ {[%emt 0:00:09]} Kg8 {[%emt 0:00:04]} 40. Bf5 {[%emt 0:00:00]} Rf8 {[%emt 0:00:00]} 41. Rh5 {[%emt 0:00:14]} Nc4 {[%emt 0:02:09]} 42. Bh7+ {[%emt 0:02:41]} Kf7 {[%emt 0:00:16]} 43. Kf2 {[%emt 0:03:06]} Nxa3 {[%emt 0:00:22]} 44. Rc5 {[%emt 0:00:49]} Kg7 {[%emt 0:00:42]} 45. Bf5 {[%emt 0:00:38]} Kf6 {[%emt 0:00:22]} 46. g4 {[%emt 0:00:13]} Rb8 {[%emt 0:00:48]} 47. e4 {[%emt 0:01:45]} a5 {[%emt 0:00:15]} 48. e5+ {[%emt 0:00:11]} Kg5 {[%emt 0:00:28]} 49. Kg3 {[%emt 0:00:21]} axb4 {[%emt 0:00:25]} 50. Rc7 {[%emt 0:00:11]} 1-0